[Event "Titled Tuesday Blitz August 22 Early 2023"]
[White "Dinosaurio_1975"]
[Black "Wang2007"]
[WhiteElo "2509"]
[BlackElo "2368"]
[Result "0-1"]
[Round "5"]
[TimeControl "180+1"]
[Date "2023.08.22"]
[WhiteClock "0:00:16"]
[BlackClock "0:00:01"]
[Board "142"]

1. e4 {[%clk 0:03:00]}  c5 {[%clk 0:02:59]} 2. Nf3 {[%clk 0:03:00]}  d6 {[%clk 0:02:59]} 3. Bb5+ {[%clk 0:03:01]}  Bd7 {[%clk 0:02:58]} 4. Bxd7+ {[%clk 0:03:01]}  Qxd7 {[%clk 0:02:59]} 5. O-O {[%clk 0:03:01]}  Nc6 {[%clk 0:02:58]} 6. c3 {[%clk 0:03:02]}  Nf6 {[%clk 0:02:57]} 7. Re1 {[%clk 0:03:01]}  e6 {[%clk 0:02:56]} 8. d4 {[%clk 0:03:02]}  cxd4 {[%clk 0:02:57]} 9. cxd4 {[%clk 0:03:02]}  d5 {[%clk 0:02:57]} 10. e5 {[%clk 0:03:03]}  Ne4 {[%clk 0:02:57]} 11. a3 {[%clk 0:03:04]}  Be7 {[%clk 0:02:55]} 12. Nbd2 {[%clk 0:03:03]}  Nxd2 {[%clk 0:02:56]} 13. Bxd2 {[%clk 0:03:04]}  O-O {[%clk 0:02:56]} 14. Rc1 {[%clk 0:03:05]}  f6 {[%clk 0:02:55]} 15. exf6 {[%clk 0:03:05]}  Rxf6 {[%clk 0:02:55]} 16. Bg5 {[%clk 0:03:03]}  Rf7 {[%clk 0:02:33]} 17. Bxe7 {[%clk 0:03:03]}  Qxe7 {[%clk 0:02:33]} 18. Re3 {[%clk 0:02:58]}  Raf8 {[%clk 0:02:32]} 19. Qe2 {[%clk 0:02:58]}  Rf6 {[%clk 0:02:28]} 20. Re1 {[%clk 0:02:54]}  Qd7 {[%clk 0:02:27]} 21. Rxe6 {[%clk 0:02:51]}  Rxf3 {[%clk 0:02:25]} 22. gxf3 {[%clk 0:02:45]}  Nxd4 {[%clk 0:02:24]} 23. Qe3 {[%clk 0:02:34]}  Nxf3+ {[%clk 0:02:19]} 24. Kh1 {[%clk 0:02:35]}  Nxe1 {[%clk 0:02:19]} 25. Qxe1 {[%clk 0:02:34]}  Qf7 {[%clk 0:02:15]} 26. Kg1 {[%clk 0:02:32]}  Qf3 {[%clk 0:01:59]} 27. Re3 {[%clk 0:02:27]}  Qg4+ {[%clk 0:01:37]} 28. Rg3 {[%clk 0:02:27]}  Qd4 {[%clk 0:01:36]} 29. Qe6+ {[%clk 0:02:25]}  Kh8 {[%clk 0:01:35]} 30. Qe2 {[%clk 0:02:25]}  Qf6 {[%clk 0:01:18]} 31. Kg2 {[%clk 0:02:09]}  a6 {[%clk 0:01:14]} 32. Rf3 {[%clk 0:01:56]}  Qg6+ {[%clk 0:01:13]} 33. Rg3 {[%clk 0:01:56]}  Qb6 {[%clk 0:01:10]} 34. Qd2 {[%clk 0:01:47]}  h6 {[%clk 0:01:06]} 35. b4 {[%clk 0:01:35]}  Qf6 {[%clk 0:01:01]} 36. Qe2 {[%clk 0:01:27]}  Qf5 {[%clk 0:00:58]} 37. h3 {[%clk 0:01:22]}  d4 {[%clk 0:00:51]} 38. Kg1 {[%clk 0:01:07]}  Qb1+ {[%clk 0:00:49]} 39. Kg2 {[%clk 0:01:06]}  Qf5 {[%clk 0:00:49]} 40. Kg1 {[%clk 0:01:05]}  Qf4 {[%clk 0:00:44]} 41. Kg2 {[%clk 0:01:02]}  b6 {[%clk 0:00:37]} 42. Kg1 {[%clk 0:01:01]}  a5 {[%clk 0:00:37]} 43. Kg2 {[%clk 0:01:02]}  axb4 {[%clk 0:00:34]} 44. axb4 {[%clk 0:01:03]}  Qd6 {[%clk 0:00:22]} 45. Qb5 {[%clk 0:00:53]}  Qf4 {[%clk 0:00:22]} 46. Qe2 {[%clk 0:00:52]}  Qf5 {[%clk 0:00:22]} 47. Kg1 {[%clk 0:00:48]}  Qb1+ {[%clk 0:00:20]} 48. Kg2 {[%clk 0:00:47]}  Qxb4 {[%clk 0:00:20]} 49. Qe5 {[%clk 0:00:47]}  Rf7 {[%clk 0:00:14]} 50. Qd5 {[%clk 0:00:41]}  Re7 {[%clk 0:00:07]} 51. Qf5 {[%clk 0:00:31]}  Re8 {[%clk 0:00:03]} 52. Qd7 {[%clk 0:00:22]}  Re7 {[%clk 0:00:02]} 53. Qd8+ {[%clk 0:00:18]}  Kh7 {[%clk 0:00:02]} 54. Qf8 {[%clk 0:00:19]}  Qd6 {[%clk 0:00:01]} 55. Rxg7+ {[%clk 0:00:16]}  Rxg7+ {[%clk 0:00:01]} 0-1


[Site "https://www.chess.com"]

[Event "Titled Tuesday Blitz August 22 Early 2023"]
[White "Koutlas, Nikolaos"]
[Black "kaanadayhamle"]
[WhiteFideId "25827138"]
[WhiteElo "2508"]
[BlackElo "2338"]
[Result "1-0"]
[Round "5"]
[TimeControl "180+1"]
[Date "2023.08.22"]
[WhiteClock "0:00:08"]
[BlackClock "0:00:26"]
[Board "144"]

1. Nf3 {[%clk 0:02:44]}  Nf6 {[%clk 0:02:58]} 2. c4 {[%clk 0:02:41]}  e6 {[%clk 0:02:58]} 3. Nc3 {[%clk 0:02:42]}  d5 {[%clk 0:02:58]} 4. d4 {[%clk 0:02:40]}  Bb4 {[%clk 0:02:58]} 5. Qa4+ {[%clk 0:02:37]}  Nc6 {[%clk 0:02:58]} 6. e3 {[%clk 0:02:38]}  O-O {[%clk 0:02:57]} 7. Bd3 {[%clk 0:02:37]}  Bd7 {[%clk 0:02:55]} 8. Qc2 {[%clk 0:02:36]}  Ne7 {[%clk 0:02:50]} 9. O-O {[%clk 0:02:34]}  Ng6 {[%clk 0:02:46]} 10. a3 {[%clk 0:02:28]}  Bxc3 {[%clk 0:02:44]} 11. Qxc3 {[%clk 0:02:25]}  dxc4 {[%clk 0:02:44]} 12. Bxc4 {[%clk 0:02:24]}  Bc6 {[%clk 0:02:45]} 13. b4 {[%clk 0:02:21]}  Bxf3 {[%clk 0:02:43]} 14. gxf3 {[%clk 0:02:20]}  Nd5 {[%clk 0:02:43]} 15. Qc2 {[%clk 0:02:17]}  Nh4 {[%clk 0:02:24]} 16. f4 {[%clk 0:02:13]}  Qf6 {[%clk 0:02:16]} 17. Kh1 {[%clk 0:02:09]}  c6 {[%clk 0:02:10]} 18. Qe4 {[%clk 0:02:07]}  Qh6 {[%clk 0:02:05]} 19. Be2 {[%clk 0:01:50]}  Nc3 {[%clk 0:02:05]} 20. Qd3 {[%clk 0:01:49]}  Nxe2 {[%clk 0:02:01]} 21. Qxe2 {[%clk 0:01:50]}  Qg6 {[%clk 0:02:01]} 22. f3 {[%clk 0:01:48]}  Qh5 {[%clk 0:01:58]} 23. Bd2 {[%clk 0:01:43]}  Rfd8 {[%clk 0:01:57]} 24. Rf2 {[%clk 0:01:40]}  Rd5 {[%clk 0:01:49]} 25. Rg1 {[%clk 0:01:34]}  Ng6 {[%clk 0:01:48]} 26. Rfg2 {[%clk 0:01:27]}  Qh4 {[%clk 0:01:36]} 27. Rg4 {[%clk 0:01:22]}  Qf6 {[%clk 0:01:33]} 28. Bc3 {[%clk 0:01:02]}  h5 {[%clk 0:01:31]} 29. Rg5 {[%clk 0:01:01]}  Rxg5 {[%clk 0:01:29]} 30. Rxg5 {[%clk 0:00:59]}  h4 {[%clk 0:01:30]} 31. Qg2 {[%clk 0:00:56]}  Rd8 {[%clk 0:01:21]} 32. h3 {[%clk 0:00:45]}  Rd5 {[%clk 0:01:05]} 33. Qg4 {[%clk 0:00:38]}  Rxg5 {[%clk 0:01:01]} 34. Qxg5 {[%clk 0:00:28]}  Qxg5 {[%clk 0:01:01]} 35. fxg5 {[%clk 0:00:29]}  Ne7 {[%clk 0:01:02]} 36. e4 {[%clk 0:00:28]}  f6 {[%clk 0:01:02]} 37. gxf6 {[%clk 0:00:25]}  gxf6 {[%clk 0:01:03]} 38. Kg2 {[%clk 0:00:25]}  Kf7 {[%clk 0:01:03]} 39. Bd2 {[%clk 0:00:22]}  Ng6 {[%clk 0:01:03]} 40. f4 {[%clk 0:00:21]}  f5 {[%clk 0:00:59]} 41. Kf3 {[%clk 0:00:21]}  Ke7 {[%clk 0:00:52]} 42. e5 {[%clk 0:00:19]}  Kf7 {[%clk 0:00:51]} 43. Be1 {[%clk 0:00:19]}  Ke7 {[%clk 0:00:51]} 44. Ke3 {[%clk 0:00:19]}  Kd7 {[%clk 0:00:52]} 45. Kf3 {[%clk 0:00:18]}  Kc7 {[%clk 0:00:52]} 46. a4 {[%clk 0:00:17]}  Kb6 {[%clk 0:00:49]} 47. Bf2 {[%clk 0:00:16]}  Kc7 {[%clk 0:00:49]} 48. Be3 {[%clk 0:00:15]}  a6 {[%clk 0:00:41]} 49. a5 {[%clk 0:00:14]}  Kd7 {[%clk 0:00:41]} 50. Bf2 {[%clk 0:00:14]}  Ke7 {[%clk 0:00:41]} 51. Be1 {[%clk 0:00:10]}  Kf7 {[%clk 0:00:41]} 52. Ke3 {[%clk 0:00:10]}  Ke7 {[%clk 0:00:39]} 53. Bd2 {[%clk 0:00:09]}  Kd7 {[%clk 0:00:39]} 54. Kf3 {[%clk 0:00:09]}  Ne7 {[%clk 0:00:34]} 55. Be1 {[%clk 0:00:09]}  Ng6 {[%clk 0:00:33]} 56. Ke3 {[%clk 0:00:09]}  Kc7 {[%clk 0:00:33]} 57. Bf2 {[%clk 0:00:08]}  b6 {[%clk 0:00:30]} 58. Kf3 {[%clk 0:00:07]}  bxa5 {[%clk 0:00:27]} 59. bxa5 {[%clk 0:00:07]}  Kb7 {[%clk 0:00:27]} 60. Bxh4 {[%clk 0:00:06]}  Nxh4+ {[%clk 0:00:27]} 61. Kg3 {[%clk 0:00:07]}  Ng6 {[%clk 0:00:26]} 62. h4 {[%clk 0:00:08]}  c5 {[%clk 0:00:24]} 63. dxc5 {[%clk 0:00:06]}  Kc6 {[%clk 0:00:25]} 64. h5 {[%clk 0:00:06]}  Nf8 {[%clk 0:00:25]} 65. Kh4 {[%clk 0:00:06]}  Kxc5 {[%clk 0:00:24]} 66. Kg5 {[%clk 0:00:07]}  Kb5 {[%clk 0:00:22]} 67. h6 {[%clk 0:00:06]}  Kxa5 {[%clk 0:00:22]} 68. Kf6 {[%clk 0:00:07]}  Kb4 {[%clk 0:00:20]} 69. Kg7 {[%clk 0:00:07]}  Nh7 {[%clk 0:00:21]} 70. Kxh7 {[%clk 0:00:07]}  a5 {[%clk 0:00:22]} 71. Kg7 {[%clk 0:00:07]}  a4 {[%clk 0:00:23]} 72. h7 {[%clk 0:00:08]}  a3 {[%clk 0:00:24]} 73. h8=Q {[%clk 0:00:08]}  a2 {[%clk 0:00:25]} 74. Qa8 {[%clk 0:00:08]}  Kb3 {[%clk 0:00:25]} 75. Kf6 {[%clk 0:00:08]}  Kb2 {[%clk 0:00:25]} 76. Kxe6 {[%clk 0:00:08]}  a1=Q {[%clk 0:00:26]} 77. Qxa1+ {[%clk 0:00:08]}  Kxa1 {[%clk 0:00:26]} 78. Kxf5 {[%clk 0:00:08]} 1-0


[Site "https://www.chess.com"]

[Event "Titled Tuesday Blitz August 22 Early 2023"]
[White "Mazurkiewicz, Michal"]
[Black "Osinovsky, Stepan"]
[WhiteFideId "1124943"]
[BlackFideId "4157354"]
[WhiteElo "2507"]
[BlackElo "2315"]
[Result "1-0"]
[Round "5"]
[TimeControl "180+1"]
[Date "2023.08.22"]
[WhiteClock "0:00:57"]
[BlackClock "0:00:04"]
[Board "146"]

1. e4 {[%clk 0:03:00]}  e5 {[%clk 0:02:58]} 2. Nf3 {[%clk 0:03:00]}  Nc6 {[%clk 0:02:59]} 3. Bb5 {[%clk 0:03:00]}  a6 {[%clk 0:02:59]} 4. Bxc6 {[%clk 0:03:00]}  dxc6 {[%clk 0:03:00]} 5. O-O {[%clk 0:03:01]}  f6 {[%clk 0:02:59]} 6. d4 {[%clk 0:03:01]}  exd4 {[%clk 0:02:59]} 7. Nxd4 {[%clk 0:03:02]}  c5 {[%clk 0:03:00]} 8. Nb3 {[%clk 0:03:02]}  Qxd1 {[%clk 0:03:00]} 9. Rxd1 {[%clk 0:03:03]}  Bg4 {[%clk 0:03:00]} 10. f3 {[%clk 0:03:03]}  Bd7 {[%clk 0:03:00]} 11. Nc3 {[%clk 0:03:02]}  O-O-O {[%clk 0:02:59]} 12. Bf4 {[%clk 0:02:57]}  c4 {[%clk 0:02:40]} 13. Na5 {[%clk 0:02:56]}  b5 {[%clk 0:02:33]} 14. Nd5 {[%clk 0:02:51]}  Bc5+ {[%clk 0:02:31]} 15. Kf1 {[%clk 0:02:51]}  c6 {[%clk 0:02:31]} 16. b4 {[%clk 0:02:34]}  Ba7 {[%clk 0:02:07]} 17. Nc7 {[%clk 0:02:28]}  Ne7 {[%clk 0:01:34]} 18. Nxa6 {[%clk 0:02:27]}  Be6 {[%clk 0:01:16]} 19. Ke2 {[%clk 0:02:19]}  Bb6 {[%clk 0:01:07]} 20. Bd6 {[%clk 0:02:11]}  Rd7 {[%clk 0:00:41]} 21. Bxe7 {[%clk 0:02:05]}  Rxe7 {[%clk 0:00:41]} 22. Nxc6 {[%clk 0:02:04]}  Kb7 {[%clk 0:00:41]} 23. Nxe7 {[%clk 0:02:03]}  Kxa6 {[%clk 0:00:40]} 24. Rd6 {[%clk 0:02:03]}  Bf7 {[%clk 0:00:36]} 25. a4 {[%clk 0:02:02]}  Rd8 {[%clk 0:00:24]} 26. Rxd8 {[%clk 0:01:27]}  Bxd8 {[%clk 0:00:25]} 27. Nc6 {[%clk 0:01:27]}  Bc7 {[%clk 0:00:22]} 28. c3 {[%clk 0:01:22]}  Kb6 {[%clk 0:00:14]} 29. axb5 {[%clk 0:01:20]}  Bxh2 {[%clk 0:00:12]} 30. Nd4 {[%clk 0:01:16]}  Be5 {[%clk 0:00:11]} 31. Ra6+ {[%clk 0:01:16]}  Kb7 {[%clk 0:00:11]} 32. Ke3 {[%clk 0:01:16]}  g5 {[%clk 0:00:10]} 33. Nc6 {[%clk 0:01:15]}  Bxc3 {[%clk 0:00:10]} 34. Ra7+ {[%clk 0:01:14]}  Kb6 {[%clk 0:00:08]} 35. Rxf7 {[%clk 0:01:14]}  Kxb5 {[%clk 0:00:09]} 36. Nd4+ {[%clk 0:01:14]}  Kxb4 {[%clk 0:00:09]} 37. Rb7+ {[%clk 0:01:14]}  Kc5 {[%clk 0:00:09]} 38. Rc7+ {[%clk 0:01:14]}  Kb4 {[%clk 0:00:09]} 39. Rb7+ {[%clk 0:01:02]}  Kc5 {[%clk 0:00:09]} 40. Rb5+ {[%clk 0:01:01]}  Kd6 {[%clk 0:00:09]} 41. Rd5+ {[%clk 0:00:59]}  Ke7 {[%clk 0:00:08]} 42. Nf5+ {[%clk 0:00:58]}  Kf7 {[%clk 0:00:07]} 43. Rd7+ {[%clk 0:00:58]}  Kg6 {[%clk 0:00:04]} 44. Rg7+ {[%clk 0:00:56]}  Kh5 {[%clk 0:00:04]} 45. g4# {[%clk 0:00:57]} 1-0


[Site "https://www.chess.com"]

[Event "Titled Tuesday Blitz August 22 Early 2023"]
[White "Korelskiy, Egor"]
[Black "Wimalasuriya, Kasun M."]
[WhiteFideId "34329064"]
[BlackFideId "9906789"]
[WhiteElo "2504"]
[BlackElo "2305"]
[Result "1-0"]
[Round "5"]
[TimeControl "180+1"]
[Date "2023.08.22"]
[WhiteClock "0:02:40"]
[BlackClock "0:02:28"]
[Board "148"]

1. e4 {[%clk 0:03:00]}  c5 {[%clk 0:02:58]} 2. Nf3 {[%clk 0:03:00]}  d6 {[%clk 0:02:52]} 3. d4 {[%clk 0:02:59]}  cxd4 {[%clk 0:02:51]} 4. Qxd4 {[%clk 0:02:59]}  Nf6 {[%clk 0:02:50]} 5. c4 {[%clk 0:02:58]}  Nc6 {[%clk 0:02:48]} 6. Qe3 {[%clk 0:02:58]}  g6 {[%clk 0:02:46]} 7. Nc3 {[%clk 0:02:57]}  Bg7 {[%clk 0:02:46]} 8. h3 {[%clk 0:02:57]}  O-O {[%clk 0:02:43]} 9. Be2 {[%clk 0:02:57]}  Nd7 {[%clk 0:02:37]} 10. O-O {[%clk 0:02:56]}  a5 {[%clk 0:02:37]} 11. Rb1 {[%clk 0:02:52]}  a4 {[%clk 0:02:37]} 12. Rd1 {[%clk 0:02:46]}  Qa5 {[%clk 0:02:35]} 13. Nd5 {[%clk 0:02:42]}  Re8 {[%clk 0:02:32]} 14. Bd2 {[%clk 0:02:41]}  Qc5 {[%clk 0:02:28]} 15. Nc7 {[%clk 0:02:40]} 1-0


[Site "https://www.chess.com"]

[Event "Titled Tuesday Blitz August 22 Early 2023"]
[White "slidingknight2775"]
[Black "ZeGood_ZeBad_ZeUgly"]
[WhiteElo "2503"]
[BlackElo "2257"]
[Result "1/2-1/2"]
[Round "5"]
[TimeControl "180+1"]
[Date "2023.08.22"]
[WhiteClock "0:00:06"]
[BlackClock "0:00:05"]
[Board "149"]

1. d4 {[%clk 0:03:00]}  d5 {[%clk 0:02:59]} 2. Nf3 {[%clk 0:03:00]}  Nf6 {[%clk 0:02:59]} 3. c4 {[%clk 0:03:00]}  c6 {[%clk 0:02:59]} 4. Nc3 {[%clk 0:03:00]}  e6 {[%clk 0:02:58]} 5. g3 {[%clk 0:03:00]}  Nbd7 {[%clk 0:02:53]} 6. Bg2 {[%clk 0:03:00]}  Bd6 {[%clk 0:02:53]} 7. O-O {[%clk 0:03:00]}  dxc4 {[%clk 0:02:52]} 8. Bg5 {[%clk 0:02:53]}  h6 {[%clk 0:02:42]} 9. Bxf6 {[%clk 0:02:53]}  Qxf6 {[%clk 0:02:34]} 10. e3 {[%clk 0:02:17]}  Qe7 {[%clk 0:02:30]} 11. Nd2 {[%clk 0:02:14]}  Nb6 {[%clk 0:02:22]} 12. Qe2 {[%clk 0:02:06]}  e5 {[%clk 0:02:15]} 13. Nxc4 {[%clk 0:01:59]}  Nxc4 {[%clk 0:02:13]} 14. Qxc4 {[%clk 0:02:00]}  O-O {[%clk 0:02:05]} 15. d5 {[%clk 0:01:48]}  b5 {[%clk 0:01:17]} 16. Qb3 {[%clk 0:01:26]}  b4 {[%clk 0:01:16]} 17. Ne4 {[%clk 0:01:24]}  c5 {[%clk 0:01:03]} 18. Rfc1 {[%clk 0:01:02]}  Bd7 {[%clk 0:00:33]} 19. a4 {[%clk 0:00:45]}  a5 {[%clk 0:00:29]} 20. Qc2 {[%clk 0:00:34]}  Rac8 {[%clk 0:00:29]} 21. b3 {[%clk 0:00:32]}  f5 {[%clk 0:00:27]} 22. Nxd6 {[%clk 0:00:32]}  Qxd6 {[%clk 0:00:27]} 23. f4 {[%clk 0:00:26]}  e4 {[%clk 0:00:25]} 24. Rd1 {[%clk 0:00:20]}  Be8 {[%clk 0:00:23]} 25. g4 {[%clk 0:00:18]}  g6 {[%clk 0:00:21]} 26. Kh1 {[%clk 0:00:18]}  Kh7 {[%clk 0:00:20]} 27. gxf5 {[%clk 0:00:17]}  gxf5 {[%clk 0:00:21]} 28. Bh3 {[%clk 0:00:17]}  Bh5 {[%clk 0:00:20]} 29. Rg1 {[%clk 0:00:16]}  Bf3+ {[%clk 0:00:20]} 30. Bg2 {[%clk 0:00:16]}  Bxg2+ {[%clk 0:00:19]} 31. Qxg2 {[%clk 0:00:16]}  Rg8 {[%clk 0:00:18]} 32. Qd2 {[%clk 0:00:15]}  Rxg1+ {[%clk 0:00:14]} 33. Rxg1 {[%clk 0:00:16]}  Rg8 {[%clk 0:00:14]} 34. Rg3 {[%clk 0:00:14]}  Rxg3 {[%clk 0:00:12]} 35. hxg3 {[%clk 0:00:15]}  Kg6 {[%clk 0:00:12]} 36. Kg2 {[%clk 0:00:15]}  h5 {[%clk 0:00:12]} 37. Qd1 {[%clk 0:00:12]}  Kh6 {[%clk 0:00:10]} 38. Kh3 {[%clk 0:00:10]}  Kg6 {[%clk 0:00:08]} 39. Kh4 {[%clk 0:00:05]}  Qf6+ {[%clk 0:00:08]} 40. Kh3 {[%clk 0:00:06]}  Qd6 {[%clk 0:00:06]} 41. Kh2 {[%clk 0:00:07]}  Kh6 {[%clk 0:00:03]} 42. Qd2 {[%clk 0:00:07]}  Kg6 {[%clk 0:00:03]} 43. Kg2 {[%clk 0:00:07]}  Kh6 {[%clk 0:00:03]} 44. Kf2 {[%clk 0:00:08]}  Kg6 {[%clk 0:00:04]} 45. Ke1 {[%clk 0:00:08]}  Kh6 {[%clk 0:00:04]} 46. Kd1 {[%clk 0:00:08]}  Kg6 {[%clk 0:00:03]} 47. Kc2 {[%clk 0:00:09]}  Kh6 {[%clk 0:00:04]} 48. Qd1 {[%clk 0:00:09]}  Kg6 {[%clk 0:00:03]} 49. Qd2 {[%clk 0:00:04]}  Kh6 {[%clk 0:00:04]} 50. Qd1 {[%clk 0:00:05]}  Kg6 {[%clk 0:00:05]} 51. Qd2 {[%clk 0:00:06]} 1/2-1/2


[Site "https://www.chess.com"]

[Event "Titled Tuesday Blitz August 22 Early 2023"]
[White "parintele_chess"]
[Black "Kuzmin, Roman"]
[BlackFideId "44134932"]
[WhiteElo "2233"]
[BlackElo "2499"]
[Result "0-1"]
[Round "5"]
[TimeControl "180+1"]
[Date "2023.08.22"]
[WhiteClock "0:00:00"]
[BlackClock "0:00:16"]
[Board "152"]

1. d4 {[%clk 0:02:59]}  Nf6 {[%clk 0:02:59]} 2. c4 {[%clk 0:02:59]}  e6 {[%clk 0:03:00]} 3. Nc3 {[%clk 0:02:57]}  d5 {[%clk 0:03:00]} 4. cxd5 {[%clk 0:02:57]}  exd5 {[%clk 0:03:01]} 5. Bg5 {[%clk 0:02:57]}  Nbd7 {[%clk 0:03:01]} 6. e3 {[%clk 0:02:57]}  c6 {[%clk 0:03:02]} 7. Bd3 {[%clk 0:02:56]}  Be7 {[%clk 0:03:02]} 8. Qc2 {[%clk 0:02:56]}  O-O {[%clk 0:03:03]} 9. Nf3 {[%clk 0:02:56]}  Re8 {[%clk 0:03:04]} 10. O-O {[%clk 0:02:55]}  Nf8 {[%clk 0:03:04]} 11. Ne5 {[%clk 0:02:55]}  Ng4 {[%clk 0:03:04]} 12. Bf4 {[%clk 0:02:42]}  Bd6 {[%clk 0:02:56]} 13. Nxg4 {[%clk 0:02:19]}  Bxf4 {[%clk 0:02:56]} 14. exf4 {[%clk 0:02:19]}  Bxg4 {[%clk 0:02:56]} 15. h3 {[%clk 0:02:17]}  Bd7 {[%clk 0:02:56]} 16. Rae1 {[%clk 0:02:14]}  Qf6 {[%clk 0:02:57]} 17. Qd2 {[%clk 0:02:06]}  g6 {[%clk 0:02:56]} 18. Bb1 {[%clk 0:02:05]}  Bf5 {[%clk 0:02:45]} 19. Bxf5 {[%clk 0:01:50]}  Qxf5 {[%clk 0:02:46]} 20. Re5 {[%clk 0:01:50]}  Qf6 {[%clk 0:02:27]} 21. Rfe1 {[%clk 0:01:44]}  Re6 {[%clk 0:02:27]} 22. f5 {[%clk 0:01:14]}  Rxe5 {[%clk 0:02:27]} 23. Rxe5 {[%clk 0:01:14]}  Nd7 {[%clk 0:02:26]} 24. Re1 {[%clk 0:00:46]}  Qxf5 {[%clk 0:02:25]} 25. Qe3 {[%clk 0:00:46]}  Qf6 {[%clk 0:02:22]} 26. Ne2 {[%clk 0:00:22]}  Nf8 {[%clk 0:01:34]} 27. Nf4 {[%clk 0:00:21]}  Rd8 {[%clk 0:01:10]} 28. g3 {[%clk 0:00:16]}  Qd6 {[%clk 0:01:00]} 29. Qf3 {[%clk 0:00:08]}  b6 {[%clk 0:00:57]} 30. Qg4 {[%clk 0:00:07]}  c5 {[%clk 0:00:55]} 31. dxc5 {[%clk 0:00:06]}  bxc5 {[%clk 0:00:56]} 32. h4 {[%clk 0:00:07]}  Qd7 {[%clk 0:00:46]} 33. Qg5 {[%clk 0:00:05]}  Ne6 {[%clk 0:00:20]} 34. Nxe6 {[%clk 0:00:05]}  fxe6 {[%clk 0:00:21]} 35. Qf6 {[%clk 0:00:05]}  Re8 {[%clk 0:00:19]} 36. h5 {[%clk 0:00:04]}  Qf7 {[%clk 0:00:19]} 37. Qg5 {[%clk 0:00:04]}  Qf5 {[%clk 0:00:18]} 38. Qe3 {[%clk 0:00:03]}  d4 {[%clk 0:00:17]} 39. Qb3 {[%clk 0:00:01]}  gxh5 {[%clk 0:00:17]} 40. Qb7 {[%clk 0:00:00]}  Qf7 {[%clk 0:00:16]} 0-1


[Site "https://www.chess.com"]

[Event "Titled Tuesday Blitz August 22 Early 2023"]
[White "cthake"]
[Black "Mrithyunjay Mahadevan"]
[BlackFideId "45003521"]
[WhiteElo "1844"]
[BlackElo "2490"]
[Result "0-1"]
[Round "5"]
[TimeControl "180+1"]
[Date "2023.08.22"]
[WhiteClock "0:00:00"]
[BlackClock "0:02:25"]
[Board "154"]

1. e4 {[%clk 0:02:22]}  c5 {[%clk 0:02:57]} 2. Nc3 {[%clk 0:02:21]}  e6 {[%clk 0:02:56]} 3. f4 {[%clk 0:02:21]}  Nc6 {[%clk 0:02:55]} 4. Nf3 {[%clk 0:02:20]}  d5 {[%clk 0:02:55]} 5. Bb5 {[%clk 0:02:20]}  d4 {[%clk 0:02:55]} 6. Ne2 {[%clk 0:02:18]}  Bd7 {[%clk 0:02:54]} 7. d3 {[%clk 0:02:18]}  Nge7 {[%clk 0:02:54]} 8. O-O {[%clk 0:02:17]}  a6 {[%clk 0:02:53]} 9. Bxc6 {[%clk 0:02:13]}  Nxc6 {[%clk 0:02:54]} 10. Qe1 {[%clk 0:02:11]}  f6 {[%clk 0:02:54]} 11. Kh1 {[%clk 0:02:07]}  Qc7 {[%clk 0:02:53]} 12. Qh4 {[%clk 0:02:06]}  O-O-O {[%clk 0:02:52]} 13. a3 {[%clk 0:02:04]}  Be7 {[%clk 0:02:51]} 14. Qe1 {[%clk 0:01:55]}  h6 {[%clk 0:02:47]} 15. Rb1 {[%clk 0:01:53]}  g5 {[%clk 0:02:44]} 16. b4 {[%clk 0:01:48]}  cxb4 {[%clk 0:02:44]} 17. axb4 {[%clk 0:01:48]}  gxf4 {[%clk 0:02:43]} 18. Bxf4 {[%clk 0:01:48]}  e5 {[%clk 0:02:43]} 19. Bd2 {[%clk 0:01:47]}  Kb8 {[%clk 0:02:38]} 20. c4 {[%clk 0:01:45]}  dxc3 {[%clk 0:02:37]} 21. Bxc3 {[%clk 0:01:44]}  Na7 {[%clk 0:02:36]} 22. Ba1 {[%clk 0:01:37]}  Bb5 {[%clk 0:02:36]} 23. d4 {[%clk 0:01:33]}  Qc2 {[%clk 0:02:32]} 24. Rf2 {[%clk 0:01:29]}  Qxe4 {[%clk 0:02:30]} 25. dxe5 {[%clk 0:01:28]}  Nc6 {[%clk 0:02:29]} 26. exf6 {[%clk 0:01:28]}  Bxb4 {[%clk 0:02:28]} 27. Qf1 {[%clk 0:01:14]}  Rhf8 {[%clk 0:02:26]} 28. Ne1 {[%clk 0:00:00]}  Qxb1 {[%clk 0:02:25]} 0-1


[Site "https://www.chess.com"]

[Event "Titled Tuesday Blitz August 22 Early 2023"]
[White "Moral Garcia, Serafin"]
[Black "Labussiere, Yago"]
[WhiteFideId "2201925"]
[BlackFideId "2186969"]
[WhiteElo "2531"]
[BlackElo "2385"]
[Result "1-0"]
[Round "5"]
[TimeControl "180+1"]
[Date "2023.08.22"]
[WhiteClock "0:01:40"]
[BlackClock "0:00:09"]
[Board "159"]

1. c4 {[%clk 0:03:00]}  e5 {[%clk 0:02:59]} 2. g3 {[%clk 0:03:00]}  g6 {[%clk 0:02:58]} 3. Bg2 {[%clk 0:02:59]}  Bg7 {[%clk 0:02:58]} 4. Nc3 {[%clk 0:02:59]}  d6 {[%clk 0:02:59]} 5. d3 {[%clk 0:02:59]}  Nc6 {[%clk 0:02:58]} 6. Rb1 {[%clk 0:02:59]}  a5 {[%clk 0:02:58]} 7. a3 {[%clk 0:02:59]}  Nf6 {[%clk 0:02:56]} 8. b4 {[%clk 0:02:59]}  axb4 {[%clk 0:02:57]} 9. axb4 {[%clk 0:02:59]}  O-O {[%clk 0:02:57]} 10. b5 {[%clk 0:02:58]}  Ne7 {[%clk 0:02:51]} 11. Bd2 {[%clk 0:02:56]}  d5 {[%clk 0:02:48]} 12. Qb3 {[%clk 0:02:50]}  Be6 {[%clk 0:02:35]} 13. Nf3 {[%clk 0:02:49]}  dxc4 {[%clk 0:02:20]} 14. dxc4 {[%clk 0:02:43]}  Nd7 {[%clk 0:02:20]} 15. Ng5 {[%clk 0:02:11]}  Nc5 {[%clk 0:02:19]} 16. Qb4 {[%clk 0:02:09]}  Qd6 {[%clk 0:01:18]} 17. Be3 {[%clk 0:02:07]}  b6 {[%clk 0:00:45]} 18. Nxe6 {[%clk 0:02:04]}  Qxe6 {[%clk 0:00:40]} 19. Bxa8 {[%clk 0:02:02]}  Rxa8 {[%clk 0:00:39]} 20. Bxc5 {[%clk 0:02:01]}  bxc5 {[%clk 0:00:39]} 21. Qxc5 {[%clk 0:02:01]}  e4 {[%clk 0:00:37]} 22. Nd5 {[%clk 0:01:58]}  Nxd5 {[%clk 0:00:32]} 23. Qxd5 {[%clk 0:01:55]}  Bc3+ {[%clk 0:00:29]} 24. Kf1 {[%clk 0:01:53]}  Qxd5 {[%clk 0:00:26]} 25. cxd5 {[%clk 0:01:50]}  Ra2 {[%clk 0:00:24]} 26. d6 {[%clk 0:01:46]}  cxd6 {[%clk 0:00:21]} 27. b6 {[%clk 0:01:46]}  Ra8 {[%clk 0:00:17]} 28. Kg2 {[%clk 0:01:45]}  d5 {[%clk 0:00:12]} 29. b7 {[%clk 0:01:45]}  Rb8 {[%clk 0:00:13]} 30. e3 {[%clk 0:01:40]}  Kf8 {[%clk 0:00:09]} 31. Rhc1 {[%clk 0:01:40]}  Be5 {[%clk 0:00:09]} 32. Rc8+ {[%clk 0:01:39]}  Ke7 {[%clk 0:00:09]} 33. Rxb8 {[%clk 0:01:39]}  Bxb8 {[%clk 0:00:09]} 34. Rc1 {[%clk 0:01:40]}  Kd7 {[%clk 0:00:09]} 35. Rc8 {[%clk 0:01:40]} 1-0


[Site "https://www.chess.com"]